Workbook

Sheet Lower 48
A1: FACTOR NO. 1 - HIP ELIGIBILITY/SELECTION CRITERIA @ 150%
A2: INCOME GUIDELINE POINT SCHEDULE FOR ALL STATES EXCEPT ALASKA
A3: FAMILY SIZE | B3: 0% to 25% of PG 25 POINTS | E3: 26% to 50% of PG 20 POINTS | H3: 51% to 75% of PG 15 POINTS | K3: 76% to 100 of PG 10 POINTS | N3: 101% to 125% of PG 5 POINTS | Q3: 125% to 150% of PG 0 POINTS | T3: OVER 150% of FPIG INELIGIBLE
A5: 1 | B5: 0 | C5: TO | D5: =D18 -> 2942.5 | E5: =D5+1 -> 2943.5 | F5: TO | G5: =G18 -> 5885 | H5: =G5+1 -> 5886 | I5: TO | J5: =J18 -> 8827.5 | K5: =J5+1 -> 8828.5 | L5: TO | M5: =M18 -> 11770 | N5: =M5+1 -> 11771 | O5: TO | P5: =P18 -> 14712.5 | Q5: =P5+1 -> 14713.5 | R5: TO | S5: =S18 -> 17655 | T5: =S5+1 -> 17656 | U5: & HIGHER
A6: 2 | B6: 0 | C6: TO | D6: =D5+D$17 -> 3982.5 | E6: 3983.5 | F6: TO | G6: =G5+G$17 -> 7965 | H6: 7966 | I6: TO | J6: =J5+J$17 -> 11947.5 | K6: 11948.5 | L6: TO | M6: =M5+M$17 -> 15930 | N6: 15931 | O6: TO | P6: =P5+P$17 -> 19912.5 | Q6: 19913.5 | R6: TO | S6: =S5+S$17 -> 23895 | T6: 23896 | U6: & HIGHER
A7: 3 | B7: 0 | C7: TO | D7: =D6+D$17 -> 5022.5 | E7: 5023.5 | F7: TO | G7: =G6+G$17 -> 10045 | H7: 10046 | I7: TO | J7: 15067.5 | K7: 15068.5 | L7: TO | M7: =M6+M$17 -> 20090 | N7: 20091 | O7: TO | P7: 25112.5 | Q7: 25113.5 | R7: TO | S7: 30135 | T7: 30136 | U7: & HIGHER
A8: 4 | B8: 0 | C8: TO | D8: 6062.5 | E8: 6063.5 | F8: TO | G8: 12125 | H8: 12126 | I8: TO | J8: 18187.5 | K8: 18188.5 | L8: TO | M8: =M7+M$17 -> 24250 | N8: 24251 | O8: TO | P8: 30312.5 | Q8: 30313.5 | R8: TO | S8: 36375 | T8: 36376 | U8: & HIGHER
A9: 5 | B9: 0 | C9: TO | D9: 7102.5 | E9: 7103.5 | F9: TO | G9: 14205 | H9: 14206 | I9: TO | J9: 21307.5 | K9: 21308.5 | L9: TO | M9: =M8+M$17 -> 28410 | N9: 28411 | O9: TO | P9: 35512.5 | Q9: 35513.5 | R9: TO | S9: 42615 | T9: 42616 | U9: & HIGHER
A10: 6 | B10: 0 | C10: TO | D10: 8142.5 | E10: 8143.5 | F10: TO | G10: 16285 | H10: 16286 | I10: TO | J10: 24427.5 | K10: 24428.5 | L10: TO | M10: =M9+M17 -> 32570 | N10: 32571 | O10: TO | P10: 40712.5 | Q10: 40713.5 | R10: TO | S10: 48855 | T10: 48856 | U10: & HIGHER
A11: 7 | B11: 0 | C11: TO | D11: 9182.5 | E11: 9183.5 | F11: TO | G11: 18365 | H11: 18366 | I11: TO | J11: 27547.5 | K11: 27548.5 | L11: TO | M11: =M10+M$17 -> 36730 | N11: 36731 | O11: TO | P11: 45912.5 | Q11: 45913.5 | R11: TO | S11: 55095 | T11: 55096 | U11: & HIGHER
A12: 8 | B12: 0 | C12: TO | D12: 10222.5 | E12: 10223.5 | F12: TO | G12: 20445 | H12: 20446 | I12: TO | J12: 30667.5 | K12: 30668.5 | L12: TO | M12: =M11+M$17 -> 40890 | N12: 40891 | O12: TO | P12: 51112.5 | Q12: 51113.5 | R12: TO | S12: 61335 | T12: 61336 | U12: & HIGHER
A13: 9 | B13: 0 | C13: TO | D13: 11262.5 | E13: 11263.5 | F13: TO | G13: 22525 | H13: 22526 | I13: TO | J13: 33787.5 | K13: 33788.5 | L13: TO | M13: =M12+M$17 -> 45050 | N13: 45051 | O13: TO | P13: 56312.5 | Q13: 56313.5 | R13: TO | S13: 67575 | T13: 67576 | U13: & HIGHER
A14: 10 | B14: 0 | C14: TO | D14: 12302.5 | E14: 12303.5 | F14: TO | G14: 24605 | H14: 24606 | I14: TO | J14: 36907.5 | K14: 36908.5 | L14: TO | M14: =M13+M$17 -> 49210 | N14: 49211 | O14: TO | P14: 61512.5 | Q14: 61513.5 | R14: TO | S14: 73815 | T14: 73816 | U14: & HIGHER
A15: 11 | B15: 0 | C15: TO | D15: 13342.5 | E15: 13343.5 | F15: TO | G15: 26685 | H15: 26686 | I15: TO | J15: 40027.5 | K15: 40028.5 | L15: TO | M15: =M14+M$17 -> 53370 | N15: 53371 | O15: TO | P15: 66712.5 | Q15: 66713.5 | R15: TO | S15: 80055 | T15: 80056 | U15: & HIGHER
A16: 12 | B16: 0 | C16: TO | D16: 14382.5 | E16: 14383.5 | F16: TO | G16: 28765 | H16: =G16+1 -> 28766 | I16: TO | J16: 43147.5 | K16: 43148.5 | L16: TO | M16: =M15+M17 -> 57530 | N16: 57531 | O16: TO | P16: 71912.5 | Q16: 71913.5 | R16: TO | S16: 86295 | T16: 86296 | U16: & HIGHER
A17: EACH PERSON OVER 12 ADD | D17: =$M19*0.25 -> 1040 | G17: =$M$19*0.5 -> 2080 | J17: =$M$19*0.75 -> 3120 | M17: =$M$19*1 -> 4160 | P17: =$M$19*1.25 -> 5200 | S17: =$M$19*1.5 -> 6240 | T17: =S17+1 -> 6241 | U17: & HIGHER
B18: 25%= | D18: =$M$18*0.25 -> 2942.5 | E18: 50%= | G18: =$M$18*0.5 -> 5885 | H18: '75%= | J18: =$M$18*0.75 -> 8827.5 | K18: 100%= | M18: 11770 | N18: 125%= | P18: =$M$18*1.25 -> 14712.5 | Q18: 150% = | S18: =$M18*1.5 -> 17655 | U18: =R18*1.25 -> 0
B19: @ Add'l: | D19: =J19*0.25 -> 780 | E19: @ Add'l: | G19: =M19*0.5 -> 2080 | H19: @ Add'l: | J19: =M19*0.75 -> 3120 | K19: @ Add'l: | M19: 4160 | N19: @ Add'l: | P19: =$M19*1.25 -> 5200 | Q19: @ Add'l: | S19: =M19*1.5 -> 6240 | U19: =R19*1.25 -> 0
A20: PG = | B20: HHS Poverty Guidelines
